fUST/lending_fUST_20251024
["ID","MTS","AMOUNT","RATE_DAILY","PERIOD"]
[392177945,1761238247370,-151.0,0.00022936,7]
[392177947,1761238247379,-151.0,0.00022936,7]
[392177948,1761238247388,-151.0,0.00022936,7]
[392177951,1761238247398,-151.0,0.00022936,7]
[392177953,1761238247407,-1327.460076,0.00022936,7]
[392177955,1761238247417,-1327.460076,0.00022936,7]
[392177957,1761238247426,-1327.460076,0.00022936,7]
[392177959,1761238247435,-1327.460076,0.00022936,7]
[392177961,1761238247444,-151.0,0.00022936,7]
[392177963,1761238247454,-151.0,0.00022936,7]
[392177965,1761238247463,-151.0,0.00022936,7]
[392177967,1761238247472,-500.0,0.00022973,2]
[392177969,1761238247481,-500.0,0.00022973,2]
[392177971,1761238247491,-500.0,0.00022973,2]
[392177973,1761238247499,-500.0,0.00022973,2]
[392177975,1761238247508,-387.21340072,0.00022973,2]
[392177977,1761238247517,-500.0,0.00022973,2]
[392177979,1761238247526,-500.0,0.00022973,2]
[392177981,1761238247536,-500.0,0.00022973,2]
[392177983,1761238247546,-500.0,0.00022973,2]
[392177985,1761238247555,-165.66082903,0.00022973,2]
[392177987,1761238247564,-500.0,0.00022973,2]
[392177989,1761238247573,-500.0,0.00022973,2]
[392177991,1761238247582,-500.0,0.00022973,2]
[392177993,1761238247592,-500.0,0.00022973,2]
[392177995,1761238247601,-588.44976397,0.00022973,2]
[392177997,1761238247610,-500.0,0.00022973,2]
[392177999,1761238247620,-500.0,0.00022973,2]
[392178001,1761238247631,-560.00262686,0.00022973,2]
[392178003,1761238247641,-500.0,0.00022973,2]
[392178005,1761238247651,-500.0,0.00022973,2]
[392178007,1761238247660,-500.0,0.00022973,2]
[392178009,1761238247671,-399.5059355,0.00022973,2]
[392178011,1761238247681,-500.0,0.00022973,2]
[392178013,1761238247691,-500.0,0.00022973,2]
[392178015,1761238247701,-500.0,0.00022973,2]
[392178017,1761238247712,-500.0,0.00022973,2]
[392178019,1761238247721,-500.0,0.00022973,2]
[392178021,1761238247730,-500.0,0.00022973,2]
[392178023,1761238247740,-194.45326006,0.00022973,2]
[392178025,1761238247749,-342.77490424,0.00022973,2]
[392178027,1761238247759,-500.0,0.00022973,2]
[392178028,1761238247768,-500.0,0.00022973,2]
[392178030,1761238247777,-500.48948243,0.00022973,2]
[392178032,1761238247787,-500.0,0.00022973,2]
[392178034,1761238247795,-500.0,0.00022973,2]
[392178036,1761238247804,-500.0,0.00022973,2]
[392178037,1761238247814,-560.3248894,0.00022973,2]
[392178038,1761238247829,-398.53405941,0.00022973,2]
[392178039,1761238247842,-500.0,0.00022973,2]
[392178040,1761238247851,-158.56908972,0.00022973,2]
[392178041,1761238247861,-500.0,0.00022973,2]
[392178042,1761238247871,-522.68705568,0.00022973,2]
[392178043,1761238248001,-500.0,0.00022973,2]
[392178044,1761238248011,-500.0,0.00022973,2]
[392178045,1761238248021,-500.0,0.00022973,2]
[392178046,1761238248030,-500.0,0.00022973,2]
[392178047,1761238248039,-238.00671648,0.00022973,2]
[392178048,1761238248050,-500.0,0.00022973,2]
[392178049,1761238248059,-500.0,0.00022973,2]
[392178050,1761238248068,-500.0,0.00022973,2]
[392178051,1761238248078,-500.0,0.00022973,2]
[392178052,1761238248087,-500.0,0.00022973,2]
[392178053,1761238248097,-500.0,0.00022973,2]
[392178054,1761238248106,-506.59667795,0.00022973,2]
[392178055,1761238248115,-577.85395676,0.00022973,2]
[392178056,1761238248125,-257.30781879,0.00022973,2]
[392178057,1761238248135,-500.0,0.00022973,2]
[392178058,1761238248144,-540.80855646,0.00022973,2]
[392178059,1761238248153,-245.40932237,0.00022973,2]
[392178060,1761238248163,-500.0,0.00022973,2]
[392178061,1761238248172,-500.0,0.00022973,2]
[392178062,1761238248181,-151.0,0.00022973,7]
[392178063,1761238248191,-151.0,0.00022973,7]
[392178064,1761238248200,-151.0,0.00022973,7]
[392178065,1761238248210,-151.0,0.00022973,7]
[392178066,1761238248220,-236.757846,0.00022973,7]
[392178067,1761238248229,-1327.460076,0.00022973,7]
[392178068,1761238248239,-1327.460076,0.00022973,7]
[392178069,1761238248248,-1327.460076,0.00022973,7]
[392178070,1761238248257,-1327.460076,0.00022973,7]
[392178071,1761238248267,-151.0,0.00022973,7]
[392178072,1761238248276,-151.0,0.00022973,7]
[392178073,1761238248286,-151.0,0.00022973,7]
[392178074,1761238248296,-500.0,0.00022973,7]
[392178075,1761238248306,-151.0,0.00022973,7]
[392178076,1761238248316,-485.0,0.00022973,7]
[392178077,1761238248326,-151.0,0.00022973,7]
[392178078,1761238248337,-151.0,0.00022973,7]
[392178079,1761238248345,-151.0,0.00022973,7]
[392178080,1761238248355,-151.0,0.00022973,7]
[392178081,1761238248365,-151.0,0.00022973,7]
[392178082,1761238248374,-500.0,0.00022973,7]
[392178083,1761238248383,-151.0,0.00022973,2]
[392178084,1761238248392,-4990.96345464,0.00022977,2]
[392178085,1761238248403,-151.0,0.00022988,2]
[392178086,1761238248412,-181.85491574,0.00022988,2]
[392178087,1761238248421,-500.0,0.00022988,2]
[392178088,1761238248430,-153.30956163,0.00022988,2]
[392178089,1761238248439,-187.77195116,0.00022988,2]
[392178090,1761238248448,-151.0,0.00022988,2]
[392178091,1761238248458,-564.78653592,0.00022988,2]
[392178092,1761238248467,-500.0,0.00022988,2]
[392178093,1761238248476,-151.0,0.00022988,2]
[392178094,1761238248486,-152.94337327,0.00022988,2]
[392178095,1761238248495,-153.08173474,0.00022988,2]
[392178096,1761238248504,-500.0,0.00022989,2]
[392178097,1761238248514,-151.0,0.00022989,2]
[392178098,1761238248523,-151.0,0.00022989,2]
[392178099,1761238248534,-151.0,0.00022989,2]
[392178100,1761238248543,-500.0,0.00022989,2]
[392178101,1761238248552,-500.0,0.00022989,2]
[392178102,1761238248562,-151.0,0.0002299,7]
[392178103,1761238248571,-151.0,0.0002299,7]
[392178104,1761238248580,-151.0,0.0002299,7]
[392178105,1761238248589,-200.0,0.0002299,3]
[392178106,1761238248599,-12955.50632174,0.0002299,2]
[392178107,1761238250248,4464.4155795,0.00022666,2]
[392178108,1761238250271,535.5844205,0.00022666,2]
[392178110,1761238265440,5000.0,0.00022645,2]
[392178112,1761238273780,5000.0,0.0002255,2]
[392178113,1761238282843,1961.0622052,0.0002255,2]
[392178115,1761238291286,5000.0,0.0002255,2]
[392178116,1761238299646,150.0,0.00019249,2]
[392178117,1761238299909,4850.01,0.00022586,2]
[392178118,1761238299946,149.99,0.00022586,2]
[392178119,1761238300097,228.04,0.00020165,2]
[392178120,1761238300520,342.05,0.00021082,2]
[392178121,1761238301615,456.07,0.00021998,2]
[392178122,1761238304750,150.0,0.00013284,30]
[392178124,1761238305378,150.0,0.00013916,30]
[392178125,1761238305593,150.0,0.00014549,30]
[392178126,1761238306091,195.46,0.00015181,30]
[392178127,1761238306500,244.32,0.00015814,30]
[392178128,1761238306899,293.19,0.00016447,30]
[392178129,1761238307329,342.05,0.00017079,30]
[392178130,1761238307743,390.92,0.00017712,30]
[392178131,1761238308136,439.78,0.00018344,30]
[392178132,1761238308253,3038.9377948,0.00022645,2]
[392178133,1761238308563,295.85,0.00018977,30]
[392178134,1761238317100,4759.5022052,0.00022645,2]
[392178135,1761238317124,240.4977948,0.00022645,2]
[392178137,1761238339085,-5000.0,0.00022645,2]
[392178138,1761238340703,0.01,0.00022532,2]
[392178139,1761238340726,4999.99,0.00022532,2]
[392178140,1761238341608,300.0,0.000226,2]
[392178141,1761238349091,4700.02,0.00022645,2]
[392178142,1761238349114,299.98,0.00022645,2]
[392178143,1761238353380,300.0,0.000226,2]
[392178144,1761238364336,5000.0,0.00022532,2]
[392178145,1761238372692,5000.0,0.00022532,2]
[392178146,1761238376679,150.0,0.00019235,2]
[392178147,1761238377122,167.66,0.00020151,2]
[392178148,1761238377594,251.49,0.00021067,2]
[392178149,1761238378007,335.32,0.00021983,2]
[392178150,1761238380942,150.0,0.0001686,30]
[392178151,1761238381354,150.0,0.00017662,30]
[392178152,1761238381776,150.0,0.00018465,30]
[392178153,1761238382183,150.0,0.00019268,30]
[392178154,1761238382634,179.64,0.00020071,30]
[392178155,1761238383030,215.57,0.00020874,30]
[392178156,1761238383450,251.49,0.00021677,30]
[392178157,1761238383852,287.42,0.00022479,30]
[392178158,1761238385787,196.0,0.00016,2]
[392178159,1761238386070,196.0,0.00016062,2]
[392178160,1761238386374,196.0,0.00016124,2]
[392178161,1761238386670,196.0,0.00016185,2]
[392178162,1761238386959,196.0,0.00016247,2]
[392178163,1761238387442,196.0,0.00016309,2]
[392178164,1761238387620,196.0,0.00016371,2]
[392178165,1761238387904,196.0,0.00016432,2]
[392178166,1761238387999,993.42,0.00022573,2]
[392178167,1761238388025,4006.58,0.00022573,2]
[392178168,1761238388185,196.0,0.00016494,2]
[392178169,1761238388455,196.0,0.00016556,2]
[392178170,1761238389400,196.0,0.00016618,2]
[392178171,1761238389797,196.0,0.00016679,2]
[392178172,1761238390068,196.0,0.00016741,2]
[392178173,1761238390383,196.0,0.00016803,2]
[392178174,1761238390627,196.0,0.00016865,2]
[392178175,1761238390907,196.0,0.00016926,2]
[392178176,1761238391176,196.0,0.00016988,2]
[392178177,1761238391566,196.0,0.0001705,2]
[392178178,1761238391833,196.0,0.00017112,2]
[392178179,1761238392134,196.0,0.00017174,2]
[392178180,1761238392423,196.0,0.00017235,2]
[392178181,1761238392697,196.0,0.00017297,2]
[392178182,1761238392968,196.0,0.00017359,2]
[392178183,1761238393254,196.0,0.00017421,2]
[392178184,1761238393521,196.0,0.00017482,2]
[392178185,1761238393793,196.0,0.00017544,2]
[392178186,1761238394068,196.0,0.00017606,2]
[392178187,1761238394856,196.0,0.00017668,2]
[392178188,1761238395149,196.0,0.00017729,2]
[392178189,1761238395422,196.0,0.00017791,2]
[392178190,1761238395691,196.0,0.00017853,2]
[392178191,1761238395958,196.0,0.00017915,2]
[392178192,1761238396227,196.0,0.00017976,2]
[392178193,1761238396459,1093.43,0.00022573,2]
[392178194,1761238396481,3906.57,0.00022573,2]
[392178195,1761238396596,196.0,0.00018038,2]
[392178196,1761238396774,366.25174616,0.000181,2]
[392178197,1761238404669,5000.0,0.00022573,2]
[392178198,1761238413091,531.18825384,0.00022573,2]
[392178199,1761238413115,4468.81174616,0.00022573,2]
[392178200,1761238421253,5000.0,0.00022573,2]
[392178201,1761238437208,531.19825384,0.00022573,2]
[392178202,1761238437233,4468.80174616,0.00022573,2]
[392178203,1761238445602,5000.0,0.00022573,2]
[392178204,1761238451657,190.06,0.00019259,2]
[392178205,1761238452125,341.14825384,0.00020176,2]
[392178206,1761238452151,38.98174616,0.00020176,2]
[392178207,1761238452538,570.19,0.00021093,2]
[392178208,1761238452978,760.26,0.0002201,2]
[392178209,1761238454126,5000.0,0.00022532,2]
[392178210,1761238455826,150.0,0.00013354,30]
[392178211,1761238456265,162.91,0.0001399,30]
[392178212,1761238456676,244.37,0.00014626,30]
[392178213,1761238457071,325.82,0.00015262,30]
[392178214,1761238457467,407.28,0.00015898,30]
[392178215,1761238457915,488.74,0.00016534,30]
[392178216,1761238458443,570.19,0.0001717,30]
[392178217,1761238458940,651.65,0.00017805,30]
[392178218,1761238459367,629.61825384,0.00018441,30]
[392178219,1761238459401,103.48174616,0.00018441,30]
[392178220,1761238459788,746.02357736,0.00019077,30]
[392178221,1761238462190,5000.0,0.00022532,2]
[392178222,1761238471158,4150.50467648,0.00022532,2]
[392178223,1761238479558,1078.49709297,0.00022525,2]
[392178224,1761238481544,475.89,0.00022208,6]
[392178225,1761238488352,5000.0,0.00022525,2]
[392178226,1761238504185,284.12116383,0.00022525,2]
[392178227,1761238505919,351.51258731,0.00016,2]
[392178229,1761238512071,5000.0,0.00022223,2]
[392178230,1761238527093,163.99,0.00019247,2]
[392178231,1761238527672,327.97,0.00020163,2]
[392178232,1761238528088,491.96,0.0002108,2]
[392178233,1761238528505,655.94,0.00021996,2]
[392178234,1761238531593,150.0,0.00014945,30]
[392178235,1761238531987,150.0,0.00015657,30]
[392178236,1761238532402,210.84,0.00016369,30]
[392178237,1761238532824,281.12,0.0001708,30]
[392178238,1761238533310,351.4,0.00017792,30]
[392178239,1761238533757,421.68,0.00018504,30]
[392178240,1761238534702,1443.59741269,0.00022223,2]
[392178241,1761238534731,3556.40258731,0.00022223,2]
[392178242,1761238534864,491.96,0.00019215,30]
[392178243,1761238535328,562.23,0.00019927,30]
[392178244,1761238535821,632.51,0.00020639,30]
[392178245,1761238536285,613.60607232,0.0002135,30]
[392178246,1761238557516,4143.30134037,0.00022223,2]
[392178247,1761238557538,856.69865963,0.00022223,2]
[392178249,1761238576135,240.3551693,0.00021664,2]
[392178250,1761238580083,5000.0,0.00022223,2]
[392178251,1761238602586,3902.95617107,0.00022223,2]
[392178252,1761238602608,1097.04382893,0.00022223,2]
[392178253,1761238604766,150.0,0.00019238,2]
[392178254,1761238605173,243.6,0.00020154,2]
[392178255,1761238605569,365.4,0.0002107,2]
[392178256,1761238606158,487.2,0.00021986,2]
[392178257,1761238609055,-196.89094059,0.0002248,2]
[392178258,1761238609563,150.0,0.00013485,30]
[392178259,1761238609967,150.0,0.00014127,30]
[392178260,1761238610373,156.6,0.00014769,30]
[392178261,1761238610766,208.8,0.00015412,30]
[392178262,1761238611180,261.0,0.00016054,30]
[392178263,1761238611573,313.2,0.00016696,30]
[392178264,1761238612039,365.4,0.00017338,30]
[392178265,1761238612548,417.6,0.0001798,30]
[392178266,1761238613025,469.8,0.00018622,30]
[392178267,1761238613415,350.37,0.00019264,30]
[392178268,1761238623980,-348.08478697,0.00022506,2]
[392178269,1761238625279,5000.0,0.0002248,2]
[392178270,1761238626016,360.35304637,0.00016,2]
[392178271,1761238647981,2218.35216866,0.0002027,2]
[392178272,1761238648146,5000.0,0.00022525,2]
[392178273,1761238656181,2781.65783134,0.00022525,2]
[392178274,1761238656206,2218.34216866,0.00022525,2]
[392178275,1761238671815,5000.0,0.00022525,2]
[392178277,1761238679688,2781.66783134,0.00022525,2]
[392178278,1761238679719,2218.33216866,0.00022525,2]
[392178279,1761238680903,150.0,0.0001923,2]
[392178280,1761238681327,227.67,0.00020146,2]
[392178281,1761238681730,341.5,0.00021062,2]
[392178282,1761238682255,455.34,0.00021977,2]
[392178284,1761238685020,150.0,0.00013691,30]
[392178285,1761238685412,150.0,0.00014343,30]
[392178286,1761238685826,150.0,0.00014994,30]
[392178287,1761238686221,195.14,0.00015646,30]
[392178288,1761238686640,243.93,0.00016298,30]
[392178289,1761238687044,292.72,0.0001695,30]
[392178290,1761238687485,341.5,0.00017602,30]
[392178291,1761238687883,390.29,0.00018254,30]
[392178292,1761238688297,439.07,0.00018906,30]
[392178293,1761238688704,294.41,0.00019558,30]
[392178294,1761238694934,3960.10783134,0.00022525,2]
[392178295,1761238694960,1039.89216866,0.00022525,2]
[392178296,1761238704178,5000.0,0.00022525,2]
[392178297,1761238714883,306.2931045,0.0002252,2]
[392178298,1761238719869,3653.82472684,0.00022525,2]
[392178299,1761238719894,1346.17527316,0.00022525,2]
[392178300,1761238728216,5000.0,0.00022525,2]
[392178301,1761238743920,3653.83472684,0.00022525,2]
[392178302,1761238743942,1346.16527316,0.00022525,2]
[392178303,1761238745966,196.0,0.00016,2]
[392178304,1761238746290,292.16767964,0.000181,2]
[392178305,1761238752246,5000.0,0.00022525,2]
[392178306,1761238756332,150.0,0.00019513,2]
[392178307,1761238756754,191.78,0.00020442,2]
[392178308,1761238757141,287.67,0.00021371,2]
[392178309,1761238757529,383.56,0.000223,2]
[392178310,1761238760559,150.0,0.00013449,30]
[392178311,1761238760982,150.0,0.00014089,30]
[392178312,1761238761425,150.0,0.00014729,30]
[392178313,1761238761866,164.38,0.0001537,30]
[392178314,1761238762292,205.48,0.0001601,30]
[392178315,1761238762695,246.57,0.00016651,30]
[392178316,1761238763087,287.67,0.00017291,30]
[392178317,1761238763477,328.77,0.00017931,30]
[392178318,1761238763895,369.86,0.00018572,30]
[392178319,1761238764298,99.9370472,0.00019212,30]
[392178320,1761238764323,53.4729528,0.00019212,30]
[392178321,1761238775368,5000.0,0.00022216,2]
[392178322,1761238797269,5000.0,0.00022216,2]
[392178323,1761238820045,0.01,0.00022216,2]
[392178324,1761238820069,4999.99,0.00022216,2]
[392178327,1761238829589,168.9802915,0.00010885,2]
[392178328,1761238831215,150.0,0.00019479,2]
[392178329,1761238832120,150.0,0.00020407,2]
[392178330,1761238832536,212.0,0.00021334,2]
[392178331,1761238836171,150.0,0.00014732,30]
[392178332,1761238836623,150.0,0.00015433,30]
[392178333,1761238837021,150.0,0.00016135,30]
[392178334,1761238837429,150.0,0.00016836,30]
[392178335,1761238838168,151.43,0.00017538,30]
[392178336,1761238838342,181.71,0.00018239,30]
[392178337,1761238838774,212.0,0.00018941,30]
[392178338,1761238839198,242.28,0.00019642,30]
[392178339,1761238839642,190.26,0.00020344,30]
[392178340,1761238842341,2741.3597085,0.00022216,2]
[392178341,1761238842365,495.63918776,0.00022216,2]
[392178342,1761238846105,1000.0,0.000221,2]
[392178343,1761238846547,1000.0,0.000216,2]
[392178344,1761238847022,1504.903919,0.000211,2]
[392178345,1761238886162,3930.9089773,0.00021589,2]
[392178346,1761238907517,150.0,0.00019526,2]
[392178347,1761238907910,150.0,0.00020455,2]
[392178348,1761238908338,208.85,0.00021385,2]
[392178349,1761238911636,150.0,0.00013284,30]
[392178350,1761238912030,150.0,0.00013916,30]
[392178351,1761238912462,150.0,0.00014549,30]
[392178352,1761238912903,150.0,0.00015181,30]
[392178353,1761238913310,150.0,0.00015814,30]
[392178354,1761238913708,179.01,0.00016447,30]
[392178355,1761238914126,208.85,0.00017079,30]
[392178356,1761238914527,238.68,0.00017712,30]
[392178357,1761238915009,173.27,0.00018344,30]
[392178358,1761238926129,-278.47,0.00022315,2]
[392178359,1761238941024,300.0,0.000211,2]
[392178360,1761238942123,-341.12309123,0.00022368,2]
[392178361,1761238951271,300.0,0.000211,2]
[392178362,1761238957076,-226.86273077,0.00022473,2]
[392178363,1761238957104,-200.0,0.00022473,2]
[392178364,1761238961896,300.0,0.000211,2]
[392178365,1761238964641,5000.0,0.00022473,2]
[392178366,1761238972185,-175.34672668,0.00022499,2]
[392178367,1761238972277,300.0,0.000211,2]
[392178368,1761238982539,150.0,0.00019484,2]
[392178369,1761238982948,150.0,0.00020412,2]
[392178370,1761238983193,300.0,0.000211,2]
[392178371,1761238983367,150.0,0.0002134,2]
[392178372,1761238983773,172.39,0.00022268,2]
[392178373,1761238986994,150.0,0.0001329,30]
[392178374,1761238987212,-500.0,0.000225,2]
[392178375,1761238987388,150.0,0.00013923,30]
[392178376,1761238987820,150.0,0.00014555,30]
[392178377,1761238988313,150.0,0.00015188,30]
[392178378,1761238988740,150.0,0.00015821,30]
[392178379,1761238988775,5000.0,0.00022499,2]
[392178380,1761238989511,300.0,0.000223,2]
[392178381,1761238993259,300.0,0.000211,2]
[392178382,1761238999928,300.0,0.000223,2]
[392178383,1761239002328,-1200.0,0.00022524,2]
[392178384,1761239003848,300.0,0.000211,2]
[392178385,1761239010422,300.0,0.000223,2]
[392178386,1761239011628,5000.0,0.00022524,2]
[392178387,1761239013016,2000.01,0.00022499,2]
[392178388,1761239013042,3659.40586981,0.00022499,2]
[392178389,1761239014151,300.0,0.000211,2]
[392178390,1761239021159,300.0,0.000223,2]
[392178391,1761239024404,300.0,0.000211,2]
[392178392,1761239033268,300.0,0.000223,2]
[392178393,1761239035594,5000.0,0.00022525,2]
[392178394,1761239039584,300.0,0.000211,2]
[392178395,1761239043951,300.0,0.000223,2]
[392178396,1761239048749,300.0,0.000211,2]
[392178397,1761239049827,300.0,0.000211,2]
[392178398,1761239055064,300.0,0.000223,2]
[392178399,1761239056178,150.0,0.00019486,2]
[392178400,1761239056579,150.0,0.00020414,2]
[392178401,1761239057009,178.84,0.00021342,2]
[392178402,1761239057414,238.45,0.0002227,2]
[392178403,1761239058566,1882.72,0.00022525,2]
[392178404,1761239058599,3117.28,0.00022525,2]
[392178405,1761239058765,300.0,0.000211,2]
[392178406,1761239060407,150.0,0.00013234,30]
[392178407,1761239060508,300.0,0.000211,2]
[392178408,1761239060827,150.0,0.00013864,30]
[392178409,1761239061282,150.0,0.00014494,30]
[392178410,1761239061709,150.0,0.00015124,30]
[392178411,1761239062126,150.0,0.00015755,30]
[392178412,1761239062695,153.29,0.00016385,30]
[392178413,1761239062973,178.84,0.00017015,30]
[392178414,1761239063495,201.87,0.00017645,30]
[392178415,1761239066321,300.0,0.000223,2]
[392178416,1761239081488,4698.73,0.00022525,2]
[392178417,1761239081520,301.27,0.00022525,2]
[392178419,1761239104568,5000.0,0.00022525,2]
[392178420,1761239123964,-1000.0,0.00022525,2]
[392178421,1761239123999,-1019.81325145,0.00022525,2]
[392178422,1761239128165,5000.0,0.00022525,2]
[392178423,1761239131160,150.0,0.00019485,2]
[392178424,1761239131570,150.0,0.00020413,2]
[392178425,1761239131962,173.25,0.00021341,2]
[392178426,1761239132415,231.0,0.00022268,2]
[392178427,1761239135582,150.0,0.00014828,30]
[392178428,1761239135930,106.1334971,0.00022525,2]
[392178429,1761239135957,1354.97767965,0.00022525,2]
[392178430,1761239136018,150.0,0.00015534,30]
[392178431,1761239136436,150.0,0.0001624,30]
[392178432,1761239136838,150.0,0.00016946,30]
[392178433,1761239137238,150.0,0.00017652,30]
[392178434,1761239137966,150.0,0.00018358,30]
[392178435,1761239138365,173.25,0.00019064,30]
[392178436,1761239138806,161.28,0.0001977,30]
[392178474,1761239151666,5000.0,0.00022525,2]
[392178475,1761239158377,193.05192616,0.00021878,2]
[392178476,1761239160271,275.84041402,0.00021874,2]
[392178477,1761239162749,314.93094127,0.00021874,2]
[392178478,1761239174069,4216.18671855,0.00022525,2]
[392178479,1761239174093,783.81328145,0.00022525,2]
[392178480,1761239182639,211.0319862,0.00021599,2]
[392178481,1761239193505,1553.84380256,0.0002027,2]
[392178482,1761239197544,5000.0,0.00022525,2]
[392178483,1761239206207,150.0,0.00019497,2]
[392178484,1761239206828,150.0,0.00020425,2]
[392178485,1761239207043,213.94,0.00021354,2]
[392178486,1761239207447,285.26,0.00022282,2]
[392178487,1761239210794,150.0,0.00012926,30]
[392178488,1761239211224,150.0,0.00013541,30]
[392178489,1761239211622,150.0,0.00014157,30]
[392178490,1761239212048,150.0,0.00014772,30]
[392178491,1761239212442,152.82,0.00015388,30]
[392178492,1761239212856,183.38,0.00016003,30]
[392178493,1761239213264,213.94,0.00016619,30]
[392178494,1761239213725,244.51,0.00017234,30]
[392178495,1761239214186,200.31,0.0001785,30]
[392178496,1761239220374,57.16092979,0.00022525,2]
[392178497,1761239220398,4942.83907021,0.00022525,2]
[392178498,1761239228731,3684.30222915,0.00022525,2]
[392178499,1761239239447,170.25746415,0.00022485,2]
[392178503,1761239244291,1202.61123649,0.00022525,2]
[392178504,1761239244317,3797.38876351,0.00022525,2]
[392178505,1761239267750,5000.0,0.00022216,2]
[392178506,1761239280713,216.72,0.00015225,7]
[392178507,1761239280989,216.71,0.00015225,7]
[392178508,1761239281722,150.0,0.00019241,2]
[392178509,1761239282156,157.93,0.00020157,2]
[392178510,1761239282553,236.9,0.00021073,2]
[392178511,1761239282992,315.86,0.00021989,2]
[392178512,1761239286192,150.0,0.00012934,30]
[392178513,1761239286612,150.0,0.0001355,30]
[392178514,1761239286798,301.83916301,0.0003,120]
[392178515,1761239287087,150.0,0.00014166,30]
[392178516,1761239287592,150.0,0.00014782,30]
[392178517,1761239288098,169.21,0.00015397,30]
[392178518,1761239288435,203.06,0.00016013,30]
[392178519,1761239288830,236.9,0.00016629,30]
[392178520,1761239289227,270.74,0.00017245,30]
[392178521,1761239289626,304.58,0.00017861,30]
[392178522,1761239290550,1921.4,0.00022216,2]
[392178523,1761239290577,3078.6,0.00022216,2]
[392178524,1761239314032,5000.0,0.00022216,2]
[392178525,1761239337182,5000.0,0.00022216,2]
[392178526,1761239344198,1440.6242909,0.00021584,2]
[392178527,1761239345572,3559.3857091,0.00022216,2]
[392178528,1761239345601,1440.6142909,0.00022216,2]
[392178529,1761239347629,-728.11355867,0.00022484,2]
[392178530,1761239356424,150.0,0.00019246,2]
[392178531,1761239356827,150.0,0.00020163,2]
[392178532,1761239357231,189.66,0.00021079,2]
[392178533,1761239357624,252.88,0.00021996,2]
[392178539,1761239360498,150.0,0.00012922,30]
[392178540,1761239360759,5000.0,0.00022484,2]
[392178541,1761239360901,150.0,0.00013538,30]
[392178542,1761239361295,150.0,0.00014153,30]
[392178543,1761239362183,150.0,0.00014768,30]
[392178544,1761239362524,-4527.53269584,0.00022485,2]
[392178545,1761239362776,150.0,0.00015384,30]
[392178546,1761239363065,162.57,0.00015999,30]